bitfinex/quotes_SOLUSD_20251117
["timestamp","ask_amount","ask_price","bid_price","bid_amount"]
[1763381596445,8.38,141.91,141.9,0.1]
[1763381597239,8.38,141.91,141.9,4.28344147]
[1763381598226,8.38,141.91,141.9,0.1]
[1763381598424,18.31098926,141.91,141.9,0.1]
[1763381599357,19.01098926,141.91,141.9,0.1]
[1763381600135,18.31098926,141.91,141.9,0.1]
[1763381601142,19.01098926,141.91,141.9,0.1]
[1763381601341,24.07527069,141.91,141.9,0.1]
[1763381601533,46.72647069,141.91,141.9,0.1]
[1763381601861,24.07527069,141.91,141.9,0.1]
[1763381602032,24.07527069,141.91,141.89,0.1]
[1763381602033,14.11443073,141.9,141.89,0.1]
[1763381602232,14.81443073,141.9,141.89,0.1]
[1763381604540,18.9978722,141.9,141.89,0.1]
[1763381604739,20.9978722,141.9,141.89,0.1]
[1763381604942,34.58218926,141.89,141.88,0.1]
[1763381605140,52.91003632,141.89,141.88,0.1]
[1763381606838,34.02099181,141.89,141.88,0.1]
[1763381607062,46.58443328,141.89,141.88,0.1]
[1763381608175,19.04979181,141.89,141.88,0.1]
[1763381608337,23.93323328,141.89,141.88,0.1]
[1763381608542,23.05226916,141.89,141.88,0.1]
[1763381608976,23.19443073,141.89,141.88,0.1]
[1763381610979,40.96218926,141.89,141.88,0.1]
[1763381611182,42.54315338,141.89,141.88,0.1]
[1763381611354,46.72659485,141.89,141.88,0.1]
[1763381611758,33.46315338,141.89,141.88,0.1]
[1763381611956,33.46315338,141.89,141.88,0.82]
[1763381612156,40.96218926,141.89,141.88,0.82]
[1763381612580,40.96218926,141.89,141.88,0.1]
[1763381612883,41.66218926,141.89,141.88,0.1]
[1763381613082,42.54315338,141.89,141.88,0.1]
[1763381613968,45.22097718,141.89,141.88,0.1]
[1763381614276,40.96218926,141.89,141.88,0.1]
[1763381615379,41.84315338,141.89,141.88,0.1]
[1763381616388,42.56315338,141.89,141.88,0.1]
[1763381616561,45.24097718,141.89,141.88,0.1]
[1763381616858,44.36001306,141.89,141.88,0.1]
[1763381617988,43.64001306,141.89,141.88,0.1]
[1763381618159,42.56315338,141.89,141.88,0.1]
[1763381618472,41.84315338,141.89,141.88,0.1]
[1763381618650,22.58977718,141.89,141.88,0.1]
[1763381621480,41.84315338,141.89,141.88,0.1]
[1763381624683,19.19195338,141.89,141.88,0.1]
[1763381625182,22.58977718,141.89,141.88,0.1]
[1763381625391,44.36001306,141.89,141.88,0.1]
[1763381627787,21.70881306,141.89,141.88,0.1]
[1763381628097,22.58977718,141.89,141.88,0.1]
[1763381628463,25.26760098,141.89,141.88,0.1]
[1763381629061,22.58977718,141.89,141.88,0.1]
[1763381630971,10.81195338,141.89,141.88,0.1]
[1763381631273,22.58977718,141.89,141.88,0.1]
[1763381631876,25.26760098,141.89,141.88,0.1]
[1763381633797,10.66979181,141.89,141.88,0.1]
[1763381633977,21.72761561,141.89,141.88,0.1]
[1763381634176,21.86977718,141.89,141.88,0.1]
[1763381634901,13.48977718,141.89,141.88,0.1]
[1763381635098,19.04979181,141.89,141.88,0.79]
[1763381635296,10.66979181,141.89,141.88,0.79]
[1763381635593,19.04979181,141.89,141.88,0.79]
[1763381635973,41.70099181,141.89,141.88,0.79]
[1763381636167,41.84315338,141.89,141.88,0.1]
[1763381637295,45.24097718,141.89,141.88,0.1]
[1763381637481,44.52097718,141.89,141.88,0.1]
[1763381638595,41.84315338,141.89,141.88,0.1]
[1763381638771,44.52097718,141.89,141.88,0.1]
[1763381640090,22.58977718,141.89,141.88,0.1]
[1763381640290,19.19195338,141.89,141.88,0.1]
[1763381640494,21.86977718,141.89,141.88,0.1]
[1763381641279,19.19195338,141.89,141.88,0.79]
[1763381645075,10.81195338,141.89,141.88,0.79]
[1763381645281,19.19195338,141.89,141.88,0.79]
[1763381645501,41.84315338,141.89,141.88,0.79]
[1763381649412,10.66979181,141.89,141.88,0.79]
[1763381649604,18.16882769,141.89,141.88,0.79]
[1763381650112,18.31098926,141.89,141.88,0.79]
[1763381650834,8.38,141.89,141.88,0.79]
[1763381651517,18.31098926,141.89,141.88,0.79]
[1763381652206,19.19195338,141.89,141.88,0.79]
[1763381653294,18.31098926,141.89,141.88,0.79]
[1763381656917,9.93098926,141.89,141.88,0.79]
[1763381657105,18.31098926,141.89,141.88,0.79]
[1763381662727,18.31098926,141.89,141.88,0.1]
[1763381662940,21.86977718,141.89,141.88,0.1]
[1763381663234,19.19195338,141.89,141.88,0.1]
[1763381663418,19.19195338,141.89,141.88,0.78]
[1763381663815,18.31098926,141.89,141.88,0.78]
[1763381665627,9.78882769,141.89,141.88,0.78]
[1763381665929,18.16882769,141.89,141.88,0.78]
[1763381666224,18.31098926,141.89,141.88,0.78]
[1763381666430,18.31098926,141.89,141.88,0.1]
[1763381666932,18.31098926,141.89,141.88,0.78]
[1763381668130,9.78882769,141.89,141.88,0.78]
[1763381668645,18.16882769,141.89,141.88,0.78]
[1763381668846,18.31098926,141.89,141.88,0.78]
[1763381672837,9.93098926,141.89,141.88,0.78]
[1763381673242,18.31098926,141.89,141.88,0.78]
[1763381677446,0.14216157,141.89,141.88,0.78]
[1763381677632,18.31098926,141.89,141.88,0.78]
[1763381677834,19.19195338,141.89,141.88,0.78]
[1763381678041,18.31098926,141.89,141.88,0.78]
[1763381679450,23.53203996,141.91,141.88,4.96278158]
[1763381679744,8.38,141.89,141.88,0.78]
[1763381679947,8.38,141.89,141.88,4.28278158]
[1763381680327,8.38,141.89,141.88,4.96278158]
[1763381681356,8.38,141.89,141.88,0.78]
[1763381681657,8.38,141.89,141.88,4.96278158]
[1763381683849,8.38,141.89,141.88,0.78]
[1763381684652,18.96098926,141.89,141.88,0.1]
[1763381685157,9.78882769,141.85,141.83,12.65367996]
[1763381685346,9.40343624,141.84,141.83,0.1]
[1763381685535,8.38,141.84,141.83,4.28278158]
[1763381686059,8.38,141.84,141.83,4.96278158]
[1763381686563,8.38,141.84,141.83,0.1]
[1763381686748,8.38,141.84,141.83,0.78]
[1763381687065,8.38,141.84,141.83,4.96278158]
[1763381687264,8.38,141.84,141.83,0.1]
[1763381687265,18.31098926,141.84,141.83,0.1]
[1763381687473,18.96098926,141.84,141.83,0.1]
[1763381688753,18.31098926,141.84,141.83,0.1]
[1763381690364,18.96098926,141.84,141.83,0.1]
[1763381693983,19.84226393,141.84,141.83,0.1]
[1763381694356,19.19226393,141.84,141.83,0.1]
[1763381695855,18.31098926,141.84,141.83,0.78]
[1763381696681,18.16882769,141.84,141.83,0.78]
[1763381696889,18.31098926,141.84,141.83,0.78]
[1763381698181,18.31098926,141.84,141.83,0.1]
[1763381699059,18.31098926,141.84,141.83,0.78]
[1763381699384,18.31098926,141.84,141.83,0.1]
[1763381700464,18.31098926,141.84,141.83,4.96278158]
[1763381700853,18.16882769,141.84,141.83,4.96278158]
[1763381701053,18.31098926,141.84,141.83,4.96278158]
[1763381701279,22.6512,141.88,141.83,4.96278158]
[1763381701481,9.78882769,141.86,141.84,0.68]
[1763381701671,8.38,141.85,141.84,4.86278158]
[1763381701870,9.78882769,141.89,141.84,4.86278158]
[1763381702078,9.78882769,141.87,141.85,0.68]
[1763381702363,8.38,141.86,141.85,0.68]
[1763381702588,9.26115043,141.86,141.85,0.68]
[1763381702898,19.04997812,141.86,141.85,0.68]
[1763381703095,19.19213969,141.86,141.85,0.68]
[1763381705204,19.19213969,141.86,141.85,4.86278158]
[1763381706092,123.59213969,141.86,141.85,4.86278158]
[1763381707064,104.4,141.86,141.85,4.86278158]
[1763381707588,112.78,141.86,141.85,10.22556316]
[1763381710770,104.4,141.86,141.85,10.22556316]
[1763381710971,112.78,141.86,141.85,10.22556316]
[1763381711585,112.78,141.86,141.85,6.04278158]
[1763381711789,8.38,141.86,141.85,10.22556316]
[1763381716700,8.38,141.86,141.85,17.27526354]
[1763381716998,8.38,141.86,141.85,10.22556316]
[1763381722221,104.4,141.89,141.85,17.27526354]
[1763381722375,104.4,141.92,141.88,4.18278158]
[1763381722695,104.4,141.92,141.91,4.18278158]
[1763381722894,112.78,141.92,141.91,4.86278158]
[1763381723814,112.78,141.92,141.91,4.18278158]
[1763381724889,112.78,141.92,141.91,4.86278158]
[1763381726716,113.44,141.92,141.85,22.6512]
[1763381726912,11.47182922,141.91,141.86,0.68]
[1763381727103,8.38,141.9,141.88,4.18278158]
[1763381727612,9.04,141.9,141.88,4.18278158]
[1763381727918,18.31098926,141.9,141.89,4.18278158]
[1763381730824,0.88083996,141.91,141.89,4.86278158]
[1763381731035,104.4,141.92,141.9,4.86278158]
[1763381731326,8.38,141.91,141.85,29.70090038]
[1763381731513,8.38,141.91,141.86,21.18419658]
[1763381731815,8.38,141.91,141.86,21.86419658]
[1763381732020,8.38,141.91,141.87,0.68]
[1763381732205,0.88090204,141.9,141.87,0.68]
[1763381732407,8.38,141.89,141.87,0.68]
[1763381733625,8.38,141.89,141.88,4.18278158]
[1763381734824,8.38,141.89,141.88,2.67633936]
[1763381735037,8.36,141.89,141.88,3.35633936]
[1763381735211,104.4,141.9,141.88,3.35633936]
[1763381735408,8.36,141.89,141.85,40.14959147]
[1763381735620,8.36,141.89,141.88,2.67633936]
[1763381736018,8.36,141.89,141.88,3.35633936]
[1763381736828,8.36,141.89,141.88,0.68]
[1763381737016,8.36,141.89,141.88,3.35633936]
[1763381739529,8.36,141.89,141.88,0.68]
[1763381739827,8.36,141.89,141.88,3.35633936]
[1763381741039,104.4,141.9,141.88,3.35633936]
[1763381741210,8.36,141.89,141.88,0.69]
[1763381741414,8.36,141.89,141.88,3.36633936]
[1763381749625,8.36,141.89,141.88,0.69]
[1763381749826,8.36,141.89,141.88,3.36633936]
[1763381751842,9.95096412,141.89,141.86,2.67633936]
[1763381752009,9.24096412,141.89,141.86,3.36633936]
[1763381752216,9.24096412,141.89,141.86,2.67633936]
[1763381752549,9.95096412,141.89,141.86,3.36633936]
[1763381752712,9.95096412,141.89,141.86,2.67633936]
[1763381753238,9.24096412,141.89,141.85,0.69]
[1763381753447,0.71,141.88,141.85,3.36633936]
[1763381753652,8.36,141.87,141.85,3.36633936]
[1763381753947,8.36,141.87,141.86,3.36633936]
[1763381755225,105.28090204,141.9,141.86,3.36633936]
[1763381755536,8.36,141.89,141.87,0.69]
[1763381755861,8.36,141.89,141.88,2.67633936]
[1763381756335,8.36,141.89,141.88,3.36633936]
[1763381757031,104.4,141.9,141.88,3.36633936]
[1763381757250,8.36,141.89,141.85,7.0498767]
[1763381757451,8.36,141.89,141.86,7.04920344]
[1763381757751,8.36,141.89,141.86,0.69]
[1763381758344,8.36,141.89,141.88,2.67633936]
[1763381758735,8.36,141.89,141.88,3.36633936]
[1763381759331,104.4,141.93,141.88,43.77077865]
[1763381759556,104.4,141.93,141.92,2.67633936]
[1763381759847,112.76,141.93,141.92,2.67633936]
[1763381761134,0.88052972,141.96,141.92,3.36633936]
[1763381761343,104.4,141.98,141.95,2.67633936]
[1763381761533,104.4,141.98,141.93,0.69]
[1763381761534,8.36,141.97,141.93,0.69]
[1763381762156,8.36,141.97,141.93,7.73570593]
[1763381762460,0.71,142.02,141.93,25.35002284]
[1763381762628,0.8802197,142.01,141.96,33.35655744]
[1763381762822,0.8802197,142.01,142.0,2.67633936]
[1763381762823,9.2402197,142.01,142.0,2.67633936]
[1763381763026,19.73904739,142.01,142.0,2.67633936]
[1763381764127,9.2402197,142.01,142.0,2.67633936]
[1763381764334,8.36,142.01,142.0,3.36633936]
[1763381764752,0.2,142.03,142.0,3.36633936]
[1763381764933,0.2,142.03,142.02,2.67633936]
[1763381765254,8.56,142.03,142.02,2.67633936]
[1763381765842,9.44009575,142.03,142.02,2.67633936]
[1763381766046,10.29225732,142.03,142.0,0.69]
[1763381766259,20.08108501,142.03,142.01,2.67633936]
[1763381766548,20.08108501,142.03,141.98,0.71]
[1763381766549,19.37108501,142.03,142.02,2.67633936]
[1763381767424,19.37108501,142.03,142.01,2.67633936]
[1763381768430,19.37108501,142.03,142.02,2.67633936]
[1763381768857,113.84009575,142.03,142.02,2.67633936]
[1763381769056,112.96,142.03,142.02,3.38633936]
[1763381769255,0.2,142.03,142.02,3.38633936]
[1763381769431,0.2,142.03,142.02,14.0916968]
[1763381769635,0.2,142.03,142.02,16.91306869]
[1763381770268,0.2,142.04,142.02,16.91306869]
[1763381770442,0.2,142.04,142.03,36.7428968]
[1763381770937,0.2,142.04,142.03,23.3612]
[1763381771256,0.2,142.04,142.02,22.6512]
[1763381771458,8.56,142.04,142.03,2.67633936]
[1763381771664,9.44003379,142.04,142.03,2.67633936]
[1763381773743,9.44003379,142.04,141.97,7.04336394]
[1763381773744,8.70216157,142.04,141.98,10.59098926]
[1763381773965,8.70216157,142.04,142.01,2.67633936]
[1763381773966,1.54009575,142.03,142.01,2.67633936]
[1763381774558,10.59098926,142.02,141.99,2.67633936]
[1763381774743,9.9002197,142.01,141.99,2.67633936]
[1763381775854,9.9002197,142.01,141.98,2.67633936]
[1763381776243,0.66,142.0,141.98,2.67633936]
[1763381776445,9.9002197,142.01,141.98,2.67633936]
[1763381776659,9.2402197,142.01,141.98,2.67633936]
[1763381776862,9.9002197,142.01,141.98,2.67633936]
[1763381777266,9.9002197,142.01,141.99,2.67633936]
[1763381777442,10.81114698,142.02,142.0,2.67633936]
[1763381777642,8.36,142.01,142.0,2.67633936]
[1763381779861,8.36,142.01,141.98,0.67]
[1763381780164,0.88028169,142.0,141.99,2.67633936]
[1763381780763,9.2402197,142.01,141.99,2.67633936]
[1763381780966,9.2402197,142.01,142.0,2.67633936]
[1763381780967,19.17120896,142.01,142.0,2.67633936]
[1763381781151,19.17120896,142.01,141.99,2.67633936]
[1763381783062,19.17120896,142.01,142.0,2.67633936]
[1763381783680,19.17120896,142.01,141.99,2.67633936]
[1763381784976,9.2402197,142.01,142.0,3.34633936]
[1763381785154,9.2402197,142.01,142.0,2.67633936]
[1763381785863,8.36,142.01,142.0,2.67633936]
[1763381786457,105.28015772,142.02,142.0,2.67633936]
[1763381786771,8.36,142.01,142.0,2.67633936]
[1763381790482,0.2,142.04,142.0,2.67633936]
[1763381790483,9.98882769,142.04,142.0,3.34633936]
[1763381790673,0.2,142.04,142.03,2.67633936]
[1763381791063,8.56,142.04,142.03,3.34633936]
[1763381791359,0.2,142.04,142.03,14.0516968]
[1763381791569,0.2,142.04,142.03,21.09246283]
[1763381792068,8.56,142.06,142.05,22.6512]
[1763381792254,8.56,142.06,142.05,25.32753936]
[1763381792589,8.56,142.06,142.05,25.99753936]
[1763381794586,8.56,142.08,142.05,33.03731408]
[1763381794787,8.56,142.08,142.07,4.16926295]
[1763381794988,8.56,142.08,142.07,4.83926295]
[1763381800886,19.00882769,142.08,142.07,4.16926295]
[1763381801087,19.15098926,142.08,142.07,4.16926295]
[1763381802615,8.56,142.08,142.07,4.16926295]
[1763381805680,8.56,142.08,142.06,0.68]
[1763381805881,8.56,142.08,142.07,4.16926295]
[1763381806077,0.2,142.08,142.07,4.16926295]
[1763381806283,8.56,142.08,142.07,4.16926295]
[1763381806799,9.78882769,142.07,142.06,4.16926295]
[1763381807101,11.47083722,142.07,142.05,4.16926295]
[1763381807268,8.36,142.06,142.05,4.16926295]
[1763381809080,0.2,142.08,142.05,4.84926295]
[1763381809280,8.36,142.06,142.03,4.16926295]
[1763381809492,8.36,142.06,142.03,11.21001797]
[1763381809690,8.36,142.06,142.04,0.68]
[1763381810508,8.36,142.06,142.05,4.16926295]
[1763381810887,8.36,142.06,142.05,4.84926295]
[1763381812087,8.36,142.06,142.03,4.16926295]
[1763381812402,8.36,142.06,142.05,4.16926295]
[1763381812792,8.36,142.06,142.05,4.84926295]
[1763381820334,8.36,142.06,142.05,4.16926295]
[1763381821519,8.36,142.06,142.05,4.84926295]
[1763381823026,104.6,142.08,142.05,4.84926295]
[1763381823231,104.6,142.08,142.07,4.16926295]
[1763381823410,113.62,142.08,142.07,4.16926295]
[1763381823606,123.55098926,142.08,142.06,4.16926295]
[1763381823920,123.55098926,142.08,142.05,4.16926295]
[1763381823921,1.53984796,142.07,142.05,4.16926295]
[1763381824226,9.78882769,142.05,142.0,4.16926295]
[1763381824526,9.38219536,142.04,141.99,4.16926295]
[1763381824748,9.93098926,142.02,141.99,4.16926295]
[1763381825028,9.2402197,142.01,141.98,4.16926295]
[1763381825329,9.9002197,142.01,141.98,4.16926295]
[1763381825630,0.66,142.0,141.98,4.16926295]
[1763381825799,8.36,141.99,141.97,4.16926295]
[1763381826528,8.36,141.99,141.97,4.87926295]
[1763381827028,1.55040569,141.98,141.95,4.16926295]
[1763381827399,0.67,141.97,141.95,4.16926295]
[1763381827605,8.36,141.96,141.95,4.16926295]
[1763381829316,8.36,141.96,141.95,4.87926295]
[1763381829515,8.36,141.96,141.95,4.16926295]
[1763381829735,8.36,141.96,141.94,4.16926295]
[1763381830239,9.03,141.96,141.92,0.71]
[1763381830421,9.03,141.96,141.9,7.0470212]
[1763381830422,11.33941944,141.95,141.91,4.16926295]
[1763381830616,0.67,141.94,141.91,4.16926295]
[1763381830930,9.24071584,141.93,141.91,4.16926295]
[1763381831249,9.24071584,141.93,141.9,4.87926295]
[1763381831548,9.91071584,141.93,141.9,4.87926295]
[1763381832350,9.24071584,141.93,141.9,4.16926295]
[1763381832549,0.67,141.92,141.89,4.26926295]
[1763381833259,0.88071584,141.93,141.91,4.16926295]
[1763381833417,0.14216157,141.94,141.9,0.71]
[1763381833418,8.36,141.92,141.9,0.71]
[1763381833615,8.36,141.91,141.9,0.71]
[1763381833850,8.36,141.91,141.9,23.3612]
[1763381834542,8.36,141.91,141.9,27.53046295]
[1763381837968,8.36,141.93,141.9,27.53046295]
[1763381838170,8.36,141.93,141.92,4.16926295]
[1763381839863,8.36,141.93,141.91,0.72]
[1763381840063,8.36,141.93,141.92,4.16926295]
[1763381843662,8.36,141.93,141.92,4.88926295]
[1763381843957,8.36,141.94,141.92,4.88926295]
[1763381844164,8.36,141.94,141.93,4.88926295]
[1763381844333,105.94040569,141.98,141.93,4.88926295]
[1763381844539,8.36,141.97,141.96,4.16926295]
[1763381845440,8.36,141.97,141.96,4.88926295]
[1763381845657,105.28040569,141.98,141.96,4.88926295]
[1763381845849,104.4,141.98,141.97,4.16926295]
[1763381846045,112.76,141.98,141.97,4.16926295]
[1763381846740,114.30040569,141.98,141.96,4.16926295]
[1763381848249,113.42,141.98,141.96,4.16926295]
[1763381849648,112.76,141.98,141.96,4.16926295]
[1763381850374,105.2802197,142.01,141.97,4.88926295]
[1763381850678,8.36,142.0,141.99,4.16926295]
[1763381850862,8.36,142.0,141.99,4.88926295]
[1763381851244,10.44882769,142.03,141.99,4.88926295]
[1763381851569,8.36,142.02,142.0,4.16926295]
[1763381851766,10.44882769,142.03,142.0,4.16926295]
[1763381851767,8.36,142.01,142.0,4.16926295]
[1763381851983,0.87997184,142.05,142.0,4.16926295]
[1763381851984,9.78882769,142.04,142.01,0.72]
[1763381852146,9.24009575,142.03,141.99,4.16926295]
[1763381852347,9.24009575,142.03,141.96,33.86460642]
[1763381852348,8.36,142.03,142.01,4.16926295]
[1763381853244,8.36,142.03,142.02,4.16926295]
[1763381853968,8.36,142.03,142.02,4.88926295]
[1763381854150,11.32879953,142.05,142.02,4.16926295]
[1763381854353,8.36,142.04,142.03,4.16926295]
[1763381854762,11.32879953,142.05,142.03,4.16926295]
[1763381855051,8.36,142.04,142.03,4.16926295]
[1763381856874,8.36,142.04,142.03,2.67089935]
[1763381859661,8.36,142.04,142.03,3.32089935]
[1763381859856,8.36,142.04,142.03,2.67089935]
[1763381860576,8.36,142.04,142.03,3.32089935]
[1763381860876,8.36,142.04,142.03,2.67089935]
[1763381861754,8.36,142.04,142.03,3.32089935]
[1763381861977,8.36,142.04,142.03,2.67089935]
[1763381863673,8.36,142.04,142.03,3.32089935]
[1763381865180,9.24003379,142.04,142.01,0.65]
[1763381865374,9.24003379,142.04,142.03,2.67089935]
[1763381866185,8.36,142.04,142.03,2.67089935]
[1763381866695,19.00098926,142.04,142.0,22.6512]
[1763381866987,0.88009575,142.03,142.02,2.67089935]
[1763381867165,1.59009575,142.03,142.02,2.67089935]
[1763381867363,0.88009575,142.03,142.02,2.67089935]
[1763381867788,123.40098926,142.04,142.02,2.67089935]
[1763381867981,0.88009575,142.03,142.02,2.67089935]
[1763381878301,0.88009575,142.03,142.02,2.67089935]
[1763381878475,122.69098926,142.04,142.02,2.67089935]
[1763381878793,123.40098926,142.04,142.02,2.67089935]
[1763381879799,0.88009575,142.03,142.02,2.67089935]
[1763381881080,0.88009575,142.03,141.97,29.69488869]
[1763381881081,9.93098926,142.02,141.98,0.65]
[1763381881282,9.2402197,142.01,141.98,0.65]
[1763381881478,9.78882769,141.99,141.96,0.65]
[1763381881675,9.24040569,141.98,141.9,29.53074203]
[1763381881877,9.24040569,141.98,141.96,2.67089935]
[1763381882601,105.28015772,142.02,141.97,3.32089935]
[1763381882891,9.07,142.01,141.99,2.67089935]
[1763381883092,8.36,142.01,141.99,2.67089935]
[1763381883497,8.36,142.01,142.0,2.67089935]
[1763381883692,105.28015772,142.02,142.0,2.67089935]
[1763381883894,9.93098926,142.03,142.01,3.32089935]
[1763381884096,8.36,142.02,141.99,22.6512]
[1763381884285,8.36,142.02,141.97,7.04345708]
[1763381884286,8.36,142.02,142.0,22.6512]
[1763381884680,8.36,142.02,142.01,0.65]
[1763381885288,8.36,142.02,142.01,3.32089935]
[1763381886680,25.52209935,142.09,142.04,22.6512]
[1763381886681,1.07978603,142.08,142.04,22.6512]
[1763381886876,8.36,142.07,142.04,22.6512]
[1763381887191,8.36,142.07,142.05,0.72]
[1763381887610,8.36,142.07,142.04,23.3712]
[1763381887982,8.36,142.07,142.06,2.67089935]
[1763381893102,8.36,142.07,142.06,3.39089935]
[1763381894808,8.36,142.07,142.06,26.04209935]
[1763381897494,0.2,142.08,142.06,26.04209935]
[1763381897724,0.2,142.08,142.07,26.00209935]
[1763381898622,0.2,142.08,142.07,2.67089935]
[1763381898912,0.2,142.08,142.07,25.32209935]
[1763381899219,0.2,142.08,142.07,26.00209935]
[1763381899999,8.56,142.08,142.07,26.00209935]
[1763381900591,8.56,142.08,142.07,3.35089935]
[1763381900791,8.56,142.08,142.07,26.00209935]
[1763381900992,8.56,142.08,142.07,2.67089935]
[1763381901189,8.56,142.08,142.07,26.00209935]
[1763381903226,0.2,142.08,142.07,2.67089935]
[1763381903526,8.56,142.08,142.07,2.67089935]
[1763381903694,8.56,142.08,142.07,3.35089935]
[1763381908221,8.56,142.08,142.07,2.67089935]
[1763381909138,8.56,142.08,142.07,3.35089935]
[1763381909699,19.89861372,142.08,142.04,22.6512]
[1763381909902,10.45882769,142.07,142.06,2.67089935]
[1763381910122,10.45882769,142.07,142.05,2.67089935]
[1763381910431,113.9819476,142.08,142.02,0.68]
[1763381910432,9.78882769,142.05,142.02,0.68]
[1763381910636,8.34,142.04,142.02,0.68]
[1763381911605,8.34,142.04,141.99,50.85862515]
[1763381911818,18.12882769,142.04,142.03,2.67089935]
[1763381912750,0.14216157,142.02,141.99,2.67089935]
[1763381912937,18.14882769,142.01,141.99,2.67089935]
[1763381913308,18.81882769,142.01,141.96,18.80882769]
[1763381913639,9.78882769,142.0,141.99,2.67089935]
[1763381914015,8.36,142.01,141.99,2.67089935]
[1763381914223,8.36,142.01,142.0,2.67089935]
[1763381914912,9.2402197,142.01,142.0,2.67089935]
[1763381915119,9.9102197,142.01,141.98,2.67089935]
[1763381915618,0.67,142.0,141.98,2.67089935]
[1763381916326,0.67,142.0,141.97,2.67089935]
[1763381916506,0.88034368,141.99,141.97,2.67089935]
[1763381916710,8.36,141.98,141.97,2.67089935]
[1763381916916,18.79882769,141.98,141.96,2.67089935]
[1763381917531,10.66929539,141.97,141.96,2.67089935]
[1763381918310,9.01,141.98,141.96,2.67089935]
[1763381918610,0.88034368,141.99,141.97,2.67089935]
[1763381918838,0.88034368,141.99,141.98,4.17648967]
[1763381919043,9.38250525,141.99,141.96,4.17648967]
[1763381919249,10.03250525,141.99,141.96,4.17648967]
[1763381920222,10.03250525,141.99,141.97,4.17648967]
[1763381920723,10.66910938,142.0,141.98,4.17648967]
[1763381920926,8.36,141.99,141.98,4.17648967]
[1763381922347,8.36,141.99,141.97,0.67]
[1763381922544,8.36,141.99,141.98,4.17648967]
[1763381922928,8.36,141.99,141.98,4.84648967]
[1763381923346,8.36,141.99,141.98,4.17648967]
[1763381924423,1.02231929,142.02,141.98,4.84648967]
[1763381924762,18.14882769,142.01,141.98,4.17648967]
[1763381925057,18.14882769,142.01,142.0,4.17648967]
[1763381925846,18.14882769,142.01,141.99,4.17648967]
[1763381926652,18.14882769,142.01,141.98,4.17648967]
[1763381926653,0.88028169,142.0,141.98,4.17648967]
[1763381926855,8.36,141.99,141.98,4.17648967]
[1763381927227,8.36,141.99,141.98,4.84648967]
[1763381930278,8.36,141.99,141.98,4.17648967]
[1763381931848,18.14882769,141.99,141.97,4.17648967]
[1763381932029,11.31923338,141.98,141.97,4.17648967]
[1763381932228,9.78882769,141.97,141.94,4.17648967]
[1763381932532,8.36,141.96,141.94,4.84648967]
[1763381932732,8.36,141.96,141.95,4.17648967]
[1763381936139,8.36,141.96,141.95,4.84648967]
[1763381936851,104.4,141.98,141.95,9.02297934]
[1763381937046,112.76,141.98,141.97,4.17648967]
[1763381937252,8.36,141.98,141.97,4.17648967]
[1763381937568,8.36,141.98,141.97,4.84648967]
[1763381939262,8.36,141.98,141.97,4.17648967]
[1763381939646,8.36,141.98,141.96,4.17648967]
[1763381940040,8.36,141.98,141.97,4.17648967]
[1763381940549,9.24040569,141.98,141.96,4.17648967]
[1763381940756,9.24040569,141.98,141.96,4.84648967]
[1763381940956,19.02923338,141.98,141.97,4.17648967]
[1763381941467,18.14882769,141.98,141.97,4.17648967]
[1763381941971,9.78882769,141.97,141.92,15.40605547]
[1763381942160,8.36,141.96,141.95,4.17648967]
[1763381942561,8.36,141.96,141.95,4.84648967]
[1763381943866,104.4,141.99,141.95,9.02297934]
[1763381944182,8.36,141.98,141.96,11.89042661]
[1763381944556,8.36,141.98,141.97,0.67]
[1763381945171,8.36,141.98,141.97,4.84648967]
[1763381945872,104.4,141.99,141.97,4.84648967]
[1763381946077,104.4,141.99,141.98,4.84648967]